Workbook

Sheet от 3 до 7 лет
H1: "Утверждаю"
H2: Руководитель дошкольной образовательной
H3: организации
C8: Примерное 12-дневное меню
C9: для организации питания детей в дошкольных учреждениях
C10: с 12 - часовым пребыванием от 3 до 7 лет
A12: День 1 - ый
A13: Наименование блюд и | C13: Масса | D13: Кол - во | E13: Кол - во | F13: Пищевые вещества | I13: Энергетическая | J13: Витамин | K13: Сборник рецептур
A14: продуктов | C14: порции | D14: (в гр ) | E14: (в гр ) | I14: ценность
D15: брутто | E15: нетто | F15: белки | G15: жиры | H15: угл-ды | I15: Ккал | J15: С
B16: ЗАВТРАК
A17: Каша "Дружба" молочная с маслом сливочным | C17: 200/5 | F17: 5.20 | G17: 7.10 | H17: 23.20 | I17: 177.50 | J17: 0.21 | K17: ТТК №7Д
B18: Крупа рисовая | D18: 15.00 | E18: 15.00
B19: Крупа пшенная | D19: 11.00 | E19: 11.00
B20: Молоко | D20: 100.00 | E20: 100.00
B21: Вода | D21: 76.00 | E21: 76.00
B22: Сахар | D22: 5.00 | E22: 5.00
B23: соль иодированная | D23: 1.00 | E23: 1.00
B24: Масло сливочное | D24: 5.00 | E24: 5.00
A25: Кофейный напиток с молоком | C25: 180 | F25: 2.85 | G25: 2.41 | H25: 14.36 | I25: 91.00 | J25: 0.19 | K25: №395 Дели2010
B26: Кофейный напиток | D26: 2.50 | E26: 2.50
B27: Сахар | D27: 10.00 | E27: 10.00
B28: Молоко | D28: 90.00 | E28: 90.00
B29: Вода | D29: 108.00 | E29: 108.00
A30: Бутерброд с маслом сливочным | C30: 30/5 | F30: 2.30 | G30: 4.50 | H30: 15.40 | I30: 111.00 | K30: №1 Дели2010
B31: Батон нарезной | D31: 30.00 | E31: 30.00
B32: Масло сливочное | D32: 5.00 | E32: 5.00
A33: Итого: | C33: 420 | F33: =F17+F25+F30 -> 10.35 | G33: =G17+G25+G30 -> 14.01 | H33: 52.96 | I33: 379.50 | J33: 0.40
B34: 2 - ой ЗАВТРАК
A35: Сок (или нектар) | C35: 200 | D35: 200 | E35: 200 | F35: 1.00 | G35: 0.00 | H35: 20.20 | I35: 85.34 | J35: 4.00 | K35: №418 сб дошк 2016
A36: в ассортименте
A37: Итого: | C37: 200 | F37: =F35+F149 -> 1.40 | G37: =G35+G149 -> 0.40 | H37: =H35+H149 -> 30.00 | I37: =I35+I149 -> 129.34 | J37: =J35+J149 -> 14.00
B38: ОБЕД
A39: Салат из моркови с сахаром | C39: 60 | F39: 0.75 | G39: 0.06 | H39: 6.97 | I39: 31.40 | K39: №42 СБ дошк 2016
B40: морковь | D40: 72.50 | E40: 58.00
B41: сахар | D41: 3.00 | E41: 3.00
A42: Суп со звездочами с картофелем с мясными фрикадельками | C42: 200/15 | F42: 5.01 | G42: 22.51 | H42: 13.83 | I42: 109.39 | J42: 5.28 | K42: №140,сбшк2004
B43: говядина б/к (котлетное мясо) | D43: 17.85 | E43: 17.1
B44: Лук репчатый | D44: 1.79 | E44: 1.5
B45: Яйцо | D45: 1.44 | E45: 1.2
B46: Вода для фарша | D46: 1.5 | E46: 1.5
B47: соль иодированная | D47: 1.2 | E47: 1.2
B48: Масса полуфабриката | E48: 21.5
B49: масса готовых фрикаделек | E49: 15
B50: Картофель | D50: 79.80 | E50: 60.00
B51: Морковь | D51: 10.00 | E51: 8.00
B52: Лук репчатый | D52: 9.52 | E52: 8.00
B53: суповая засыпка (звездочки) | D53: 8.00 | E53: 8.00
B54: Масло растительное | D54: 4.00 | E54: 4.00
B55: соль иодированная | D55: 1.20 | E55: 1.20
B56: Вода | D56: 152.00 | E56: 152.00
A57: Котлеты рубленые из говядины | C57: 70 | F57: 10.43 | G57: 7.70 | H57: 10.19 | I57: 151.38 | K57: СБ дошкольн. №299, 2016
B58: говядина б/к (котлетное мясо) | D58: 51.16 | E58: 49
B59: Лук репчатый | D59: 14.64 | E59: 12.3
B60: Хлеб пшеничный | D60: 11 | E60: 11
B61: Вода | D61: 14.7 | E61: 14.7
B62: Сухари панировочные | D62: 4.00 | E62: 4.00
B63: соль иодированная | D63: 0.7 | E63: 0.7
B64: масса полуфабриката | E64: 75.3
A65: Капуста тушеная | C65: 150 | F65: 3.30 | G65: 4.90 | H65: 14.10 | I65: 114.60 | J65: 24.70 | K65: №534сб шк2004
B66: Капуста свежая | D66: 215.00 | E66: 172.00
B67: Лук репчатый | D67: 7.14 | E67: 6.00
B68: Морковь | D68: 3.75 | E68: 3.00
B69: Мука пшеничная | D69: 2.00 | E69: 2.00
B70: Масло сливочное | D70: 2.00 | E70: 2.00
B71: Масло растительное | D71: 2.00 | E71: 2.00
B72: Томат-паста | D72: 1.20 | E72: 1.20
B73: Сахар | D73: 4.50 | E73: 4.50
B74: соль иодированная | D74: 1.00 | E74: 1.00
A75: Компот из сухофруктов | C75: 180 | F75: 0.40 | G75: 0.02 | H75: 25.00 | I75: 101.70 | J75: 0.36 | K75: №394 сб дошк 2016
B76: сухофрукты | D76: 18.00 | E76: 18.00
B77: масса вареных сухофруктов | E77: 45.00
B78: Сахар | D78: 10.00 | E78: 10.00
B79: Вода | D79: 183.00 | E79: 183.00
A80: Булочка дорожная | C80: 50 | F80: 3.39 | G80: 6.98 | H80: 26.07 | I80: 181.00 | K80: №453 сб дошк2016
B81: Мука пшеничная | D81: 30.50 | E81: 30.00
B82: мука пшеничная на подпыл | D82: 1.00 | E82: 1.00
B83: Сахар | D83: 6.00 | E83: 6.00
B84: Масло сливочное | D84: 6.50 | E84: 6.50
B85: соль иодированная | D85: 0.30 | E85: 0.30
B86: дрожжи сухие | D86: 0.20 | E86: 0.20
B87: вода | D87: 15.30 | E87: 15.30
B88: масса полуфабриката | E88: 57.00
B89: для крошки:
B90: мука пшеничная | D90: 1.20 | E90: 1.20
B91: масло сливочное | D91: 1.00 | E91: 1.00
B92: масса крошки | E92: 2.00
B93: масло растительное для смазки изделй | D93: 1.00 | E93: 1.00
A94: Хлеб ржано - пшеничный | C94: 45 | D94: 45.00 | E94: 45.00 | F94: 2.98 | G94: 0.54 | H94: 17.82 | I94: 89.10 | K94: табл 6 стр 144,Дели + 2012
A95: Итого: | C95: =60+215+70+150+180+50+45 -> 770 | F95: =F39+F42+F57+F65+F75+F80+F94 -> 26.26 | G95: =G39+G42+G57+G65+G75+G80+G94 -> 42.71 | H95: 113.98 | I95: =I39+I42+I57+I65+I75+I80+I94 -> 778.57 | J95: 30.34
B96: УПЛОТНЕННЫЙ ПОЛДНИК
A97: Пудинг рыбный | C97: 80/30 | F97: 14.60 | G97: 9.00 | H97: 10.80 | I97: 182.00 | K97: №286 СБ дошк 2016
B98: рыба (минтай с/м ПБГ) | D98: 84 | E98: 67
B99: масса отварной рыбы | E99: 53
B100: Хлеб пшеничный | D100: 11 | E100: 11
B101: яйцо | D101: 8.4 | E101: 7
B102: молоко | D102: 16 | E102: 16
B103: масло сливочное | D103: 3 | E103: 3
B104: соль иодированная | D104: 0.5 | E104: 0.5
B105: Масло растительное | D105: 1.3 | E105: 1.3
B106: Соус молочный
B107: молоко | D107: 15 | E107: 15
B108: масло сливочное | D108: 1.65 | E108: 1.65
B109: Мука пшеничная | D109: 1.65 | E109: 1.65
B110: Вода | D110: 15 | E110: 15
B111: Сахар | D111: 0.3 | E111: 0.3
B112: соль иодированная | D112: 0.2 | E112: 0.2
B113: масса соуса | E113: 30
A114: Пюре Картофельное | C114: 140 | F114: 2.86 | G114: 4.48 | H114: 19.07 | I114: 128.10 | J114: 0.23 | K114: № 339 СБ дошк 2016
B115: Картофель | D115: 159.60 | E115: 119.70
B116: Молоко | D116: 22.12 | E116: 21.00
B117: Масло сливочное | D117: 5.00 | E117: 5.00
B118: соль иодированная | D118: 0.52 | E118: 0.52
A119: Кисломолочный напиток | C119: 180/5 | F119: 5.22 | G119: 4.50 | H119: 12.19 | I119: 109.95 | J119: 1.26 | K119: №420 СБ дошк 2016
A120: (Кефир,ряженка,катык,йогурт) | B120: кисломолочный напиток | D120: 185.00 | E120: 180.00
B121: сахар | D121: 5.00 | E121: 5.00
A122: Хлеб пшеничный | C122: 25 | D122: 25.00 | E122: 25.00 | F122: 1.90 | G122: 0.20 | H122: 12.30 | I122: 58.75 | J122: 0.00 | K122: табл 6 стр 134,Дели + 2012
A123: Итого: | C123: 510 | F123: =F97+F114+F119+F122 -> 24.58 | G123: =G97+G114+G119+G122 -> 18.18 | H123: 54.36 | I123: 478.80 | J123: 1.49
A124: ВСЕГО: | C124: =C33+C37+C95+C123 -> 1900.00 | F124: =F33+F37+F95+F123 -> 62.59 | G124: =G33+G37+G95+G123 -> 75.30 | H124: 251.30 | I124: =I33+I37+I95+I123 -> 1766.21 | J124: 46.23
A126: День 2- ой
A127: Наименование блюд и | C127: Масса | D127: Кол - во | E127: Кол - во | F127: Пищевые вещества | I127: Энергетическая | J127: Витамин | K127: Сборник
A128: продуктов | C128: порции | D128: (в гр ) | E128: (в гр ) | I128: ценность | K128: рецептур
D129: брутто | E129: нетто | F129: белки | G129: жиры | H129: угл-ды | I129: Ккал | J129: С
B130: ЗАВТРАК
A131: Каша полбяная молочная с маслом сливочным | C131: 200/5 | F131: 5.89 | G131: 5.42 | H131: 25.84 | I131: 176.00 | J131: 0.21 | K131: ТТК №1Д
B132: крупа полбяная | D132: 25.00 | E132: 25.00
B133: Молоко | D133: 100.00 | E133: 100.00
B134: вода | D134: 76.00 | E134: 76.00
B135: Сахар | D135: 5.00 | E135: 5.00
B136: соль иодированная | D136: 1.00 | E136: 1.00
B137: Масло сливочное | D137: 5.00 | E137: 5.00
A138: Какао с молоком | C138: 180 | F138: 3.67 | G138: 3.19 | H138: 15.82 | I138: 107.00 | J138: 0.39 | K138: №397 Дели2010
B139: Какао-порошок | D139: 2.00 | E139: 2.00
B140: Сахар | D140: 10.00 | E140: 10.00
B141: Молоко | D141: 110.00 | E141: 110.00
B142: Вода | D142: 80.00 | E142: 80.00
A143: Бутерброд с сыром, маслом сливочным | C143: 30/10/5 | F143: 5.59 | G143: 8.00 | H143: 15.40 | I143: 156.40 | J143: 0.21 | K143: №3 сб дошк2016
B144: Батон нарезной | D144: 30.00 | E144: 30.00
B145: Сыр | D145: 10.20 | E145: 10.00
B146: Масло сливочное | D146: 5.00 | E146: 5.00
A147: Итого: | C147: 430 | F147: =F131+F138+F143 -> 15.15 | G147: =G131+G138+G143 -> 16.61 | H147: 57.06 | I147: 439.40 | J147: 0.81
B148: 2 - ой ЗАВТРАК
A149: Фрукты свежие | C149: 100 | D149: 114 | E149: 100 | F149: 0.40 | G149: 0.40 | H149: 9.80 | I149: 44.00 | J149: 10.00 | K149: №386 СБ
A150: (яблоки,или апельсин, или банан,или мандарин ) | K150: дошк.2016
A151: Итого: | C151: 100 | F151: =F149 -> 0.40 | G151: =G149 -> 0.40 | H151: 9.80 | I151: 44.00 | J151: 10.00
B152: ОБЕД
A153: Салат с морской капустой с овощами | C153: 60 | F153: 1.12 | G153: 3.18 | H153: 6.50 | I153: 59.04 | J153: 7.20 | K153: ТТК 222 от 17.09.2019
B154: капуста морская сушеная | D154: 6.37 | E154: 6.37
B155: масса отварной морской капусты | E155: 40.00
B156: морковь | D156: 12.50 | E156: 10.00
B157: кукуруза к/с | D157: 12.53 | E157: 7.50
B158: масло растительное | D158: 3.00 | E158: 3.00
A159: Борщ со свежей капустой, картофелем на м/б,со сметаной | C159: 200/7 | F159: 1.50 | G159: 3.90 | H159: 9.50 | I159: 79.00 | J159: 6.36 | K159: №110, сб шк2004
B160: Капуста свежая | D160: 20.00 | E160: 16.00
B161: Картофель | D161: 21.28 | E161: 16.00
B162: Морковь | D162: 12.50 | E162: 10.00
B163: Лук репчатый | D163: 9.52 | E163: 8.00
B164: Свекла | D164: 41.00 | E164: 32.00
B165: Сахар | D165: 2.40 | E165: 2.40
B166: Томат-паста | D166: 1.00 | E166: 1.00
B167: Масло растительное | D167: 4.00 | E167: 4.00
B168: соль иодированная | D168: 2.00 | E168: 2.00
B169: Бульон | D169: 160.00 | E169: 160.00
B170: Сметана | D170: 7.00 | E170: 7.00
A171: Плов из отварной говядины | C171: 200 | F171: 15.60 | G171: 15.00 | H171: 28.00 | I171: 309.50 | J171: 0.65 | K171: №443,сбшк2004
B172: говядина (лопатка б/к) | D172: 52.00 | E172: 52.0
B173: масса отварного мяса | E173: 32.0
B174: масло сливочное | D174: 8.0 | E174: 8.0
B175: Лук репчатый | D175: 11.9 | E175: 10.00
B176: Морковь | D176: 16.3 | E176: 13.00
B177: Крупа рисовая | D177: 55.0 | E177: 55.0
B178: вода | D178: 86.0 | E178: 86.0
B179: соль иодированная | D179: 2.0 | E179: 2.0
B180: масса гарнира | E180: 168.0
A181: Кисель | C181: 180 | H181: 18.00 | I181: 72.00 | K181: № 648, сб шк2004
B182: Кисель-концентрат | D182: 21.00 | E182: 21.00
B183: Сахар | D183: 9.00 | E183: 9.00
B184: вода | D184: 180.00 | E184: 180.00
A185: Хлеб пшеничный | C185: 25 | D185: 25.00 | E185: 25.00 | F185: 1.90 | G185: 0.20 | H185: 12.30 | I185: 58.75 | J185: 0.00 | K185: табл 6 стр 134,Дели + 2012
A186: Хлеб ржано - пшеничный | C186: 45 | D186: 45.00 | E186: 45.00 | F186: 2.98 | G186: 0.54 | H186: 17.82 | I186: 89.10 | K186: табл 6 стр 144,Дели + 2012
A187: Итого: | C187: 712 | F187: =F153+F159+F171+F181+F185+F186 -> 23.10 | G187: =G153+G159+G171+G181+G185+G186 -> 22.82 | H187: 92.12 | I187: 667.39 | J187: 14.21
B188: УПЛОТНЕННЫЙ ПОЛДНИК
A189: Запеканка творожная с повидлом | C189: 120/30 | F189: 21.17 | G189: 14.47 | H189: 40.09 | I189: 372.60 | J189: 0.44 | K189: №251, сбдошк 2016
B190: Творог | D190: 112.20 | E190: 110.00
B191: Крупа манная | D191: 7.20 | E191: 7.20
B192: Яйцо | D192: 6.00 | E192: 5.00
B193: Сахар | D193: 9.60 | E193: 9.60
B194: Сметана | D194: 4.80 | E194: 4.80
B195: Масло сливочное | D195: 4.80 | E195: 4.80
B196: Сухари панировочные | D196: 4.80 | E196: 4.80
B197: соль иодированная | D197: 0.60 | E197: 0.60
B198: повидло | D198: 30.00 | E198: 30.00
A199: Кисломолочный напиток | C199: 180 | F199: 5.22 | G199: 4.50 | H199: 7.56 | I199: 92.00 | J199: 0.54 | K199: №420 СБ дошк 2016
A200: (Кефир,ряженка,катык,йогурт) | B200: кисломолочный напиток | D200: 185 | E200: 180
A201: Кондитерское изделие | B201: мармелад | C201: 19.5 | D201: 19.50 | E201: 19.50 | F201: 0.00 | G201: 0.00 | H201: 16.80 | I201: 63.38
A202: Хлеб пшеничный | C202: 30 | D202: 30.00 | E202: 30.00 | F202: 2.28 | G202: 0.24 | H202: 14.76 | I202: 70.50 | J202: 0.00 | K202: табл 6 стр 134,Дели + 2012
A203: Итого: | C203: 379.5 | F203: =F189+F201+F199++F202 -> 28.67 | G203: =G189+G201+G199++G202 -> 19.21 | H203: 79.21 | I203: 598.48 | J203: 0.98
A204: ВСЕГО: | C204: =C147+C151+C187+C203 -> 1621.50 | F204: =F147+F151+F187+F203 -> 67.32 | G204: =G147+G151+G187+G203 -> 59.04 | H204: =H147+H151+H187+H203 -> 238.19 | I204: =I147+I151+I187+I203 -> 1749.27 | J204: =J147+J151+J187+J203 -> 26.00
A206: День 3 - ий
A207: Наименование блюд и | C207: Масса | D207: Кол - во | E207: Кол - во | F207: Пищевые вещества | I207: Энергетическая | J207: Витамин | K207: Сборник
... 988 more rows

Sheet от 2 мес до 3 лет
H1: "Утверждаю"
H2: Руководитель дошкольной образовательной
H3: организации
E6: Примерное 12-дневное меню
E7: для организации питания детей в дошкольных учреждениях
E8: с 12 - часовым пребыванием от 2 мес до 3 лет
A10: День 1 - ый
A11: Наименование блюд и | C11: Масса | D11: Кол - во | E11: Кол - во | F11: Пищевые вещества | I11: Энергетическая | J11: витамин | K11: Сборник
A12: продуктов | C12: порции | D12: (в гр ) | E12: (в гр ) | I12: ценность | K12: рецептур
D13: брутто | E13: нетто | F13: белки | G13: жиры | H13: угл-ды | I13: Ккал | J13: С
A15: Каша "Дружба" молочная с маслом сливочным | C15: 150/4 | F15: 3.60 | G15: 5.30 | H15: 17.00 | I15: 130.00 | J15: 0.21 | K15: ТТК №7Д
B16: Крупа рисовая | D16: 11 | E16: 11
B17: Крупа пшенная | D17: 8 | E17: 8
B18: Молоко | D18: 80 | E18: 80
B19: Вода | D19: 52 | E19: 52
B20: Сахар | D20: 4 | E20: 4
B21: соль иодированная | D21: 0.8 | E21: 0.8
B22: Масло сливочное | D22: 4 | E22: 4
A23: Кофейный напиток с молоком | C23: 165 | F23: 2.57 | G23: 2.2 | H23: 11.69 | I23: 77 | J23: 0.16 | K23: №395Дели2010
B24: Кофейный напиток | D24: 2 | E24: 2
B25: Сахар | D25: 7.7 | E25: 7.7
B26: Молоко | D26: 75 | E26: 75
B27: вода | D27: 106 | E27: 106
A28: Бутерброд с маслом сливочным | C28: 25/5 | F28: 1.9 | G28: 4.4 | H28: 13 | I28: 99 | K28: №1 Дели2010
B29: Батон нарезной | D29: 25 | E29: 25
B30: Масло сливочное | D30: 5 | E30: 5
A31: Итого: | C31: 349 | F31: =F15+F23+F28 -> 8.07 | G31: =G15+G23+G28 -> 11.90 | H31: 41.69 | I31: 306.00 | J31: 0.37
B32: 2 - ой ЗАВТРАК
A33: Сок | C33: 200 | D33: 200 | E33: 200 | F33: 1.00 | G33: 0.00 | H33: 20.20 | I33: 85.34 | J33: 4.00 | K33: №418 сб дошк 2016
A34: в ассортименте в инд.упаковке
A35: Итого: | C35: 200 | F35: =F33 -> 1.00 | G35: =G33 -> 0.00 | H35: 20.20 | I35: 85.34 | J35: 4.00
B36: ОБЕД
A37: Салат из моркови с сахаром | C37: 40 | F37: 0.50 | G37: 0.04 | H37: 4.65 | I37: 20.93 | K37: №42 СБ дошк 2016
B38: морковь | D38: 47.50 | E38: 38.00
B39: сахар | D39: 2.00 | E39: 2.00
A40: Суп со звездочами с картофелем с мясными фрикадельками | C40: 150/10 | F40: 5.01 | G40: 22.51 | H40: 13.83 | I40: 109.39 | J40: 5.28 | K40: 140сбшк2004
B41: говядина б/к (котлетное мясо) | D41: 11.9 | E41: 114
B42: Лук репчатый | D42: 1.19 | E42: 1
B43: Яйцо | D43: 0.96 | E43: 0.8
B44: Вода для фарша | D44: 1 | E44: 1
B45: соль иодированная | D45: 1 | E45: 1
B46: Масса полуфабриката | E46: 14.3
B47: масса готовых фрикаделек | E47: 10
B48: Картофель | D48: 59.90 | E48: 45.00
B49: Морковь | D49: 7.50 | E49: 6.00
B50: Лук репчатый | D50: 7.14 | E50: 6.00
B51: суповая засыпка (звездочки) | D51: 6.00 | E51: 6.00
B52: Масло растительное | D52: 3.00 | E52: 3.00
B53: соль иодированная | D53: 1.00 | E53: 1.00
B54: Вода | D54: 114.00 | E54: 114.00
A55: Котлеты рубленные из говядины | C55: 50 | F55: 7.45 | G55: 5.50 | H55: 7.28 | I55: 108.13 | K55: СБ дошкольн. №299, 2016
B56: говядина б/к (котлетное мясо) | D56: 36.57 | E56: 35
B57: лук репчатый | D57: 10.4 | E57: 8.75
B58: Хлеб пшеничный | D58: 8.13 | E58: 8.13
B59: Вода | D59: 5.2 | E59: 5.2
B60: сухари панировочные | D60: 2.8 | E60: 2.8
B61: соль иодированная | D61: 0.4 | E61: 0.4
B62: масса полуфабриката | E62: 61.9
B63: Масло растительное | D63: 0.60 | E63: 0.60
A64: Капуста тушеная | C64: 120 | F64: 2.48 | G64: 3.88 | H64: 11.31 | I64: 90.12 | J64: 20.59 | K64: №354 сбдошк2016
B65: Капуста свежая | D65: 172 | E65: 137.5
B66: Лук репчатый | D66: 6 | E66: 5
B67: Морковь | D67: 5 | E67: 4
B68: томатная паста | D68: 1 | E68: 1
B69: Мука пшеничная | D69: 1.44 | E69: 1.44
B70: Масло растительное | D70: 1.5 | E70: 1.5
B71: Масло сливочное | D71: 2.5 | E71: 2.5
B72: Сахар | D72: 3.6 | E72: 3.6
B73: соль иодированная | D73: 0.8 | E73: 0.8
A74: Компот из сухофруктов | C74: 150 | F74: 0.33 | G74: 0.02 | H74: 20.83 | I74: 84.75 | J74: 0.24 | K74: №394 сб дошк2016
B75: сухофрукты | D75: 15 | E75: 15
B76: масса вареных сухофруктов | E76: 37.5
B77: вода | D77: 153 | E77: 153
B78: Сахар | D78: 8 | E78: 8
A79: Булочка дорожная | C79: 35 | F79: 2.73 | G79: 4.90 | H79: 18.25 | I79: 126.70 | K79: №453 сб дошк2016
B80: Мука пшеничная | D80: 21.35 | E80: 21.00
B81: мука пшеничная на подпыл | D81: 0.70 | E81: 0.70
B82: Сахар | D82: 4.20 | E82: 4.20
B83: Масло сливочное | D83: 4.55 | E83: 4.55
B84: соль иодированная | D84: 0.21 | E84: 0.21
B85: дрожжи сухие | D85: 0.14 | E85: 0.14
B86: вода | D86: 10.70 | E86: 10.70
B87: масса полуфабриката | E87: 39.90
B88: для крошки:
B89: мука пшеничная | D89: 0.84 | E89: 0.84
B90: масло сливочное | D90: 0.70 | E90: 0.70
B91: масса крошки | E91: 1.40
B92: масло растительное для смазки изделй | D92: 0.70 | E92: 0.70
A93: Хлеб пшенично - ржаной | C93: 40 | D93: 40 | E93: 40 | F93: 2.64 | G93: 0.48 | H93: 15.84 | I93: 79.2 | K93: табл 6 стр 144,Дели + 2012
A94: Итого: | C94: 595.00 | F94: =F37+F40+F55+F64+F74+F79+F93 -> 21.14 | G94: =G37+G40+G55+G64+G74+G79+G93 -> 37.33 | H94: 91.99 | I94: 619.22 | J94: 26.11
B95: УПЛОТНЕННЫЙ ПОЛДНИК
A96: Пудинг рыбный | C96: 60/20 | F96: 11.23 | G96: 6.77 | H96: 8.12 | I96: 136.84 | K96: №286 СБ дошк 2016
B97: рыба (горбуша ПБГ) | D97: 69 | E97: 50.25
B98: масса отварной рыбы | E98: 39.75
B99: Хлеб пшеничный | D99: 8.25 | E99: 8.25
B100: яйцо | D100: 6.3 | E100: 5.25
B101: молоко | D101: 12 | E101: 12
B102: масло сливочное | D102: 2.25 | E102: 2.25
B103: соль иодированная | D103: 0.4 | E103: 0.4
B104: Масло растительное | D104: 1 | E104: 1
B105: масса пудинга | E105: 60
B106: Соус молочный
B107: молоко | D107: 10 | E107: 10
B108: масло сливочное | D108: 1.1 | E108: 1.1
B109: Мука пшеничная | D109: 1.1 | E109: 1.1
B110: Вода | D110: 10 | E110: 10
B111: Сахар | D111: 0.2 | E111: 0.2
B112: соль иодированная | D112: 0.13 | E112: 0.13
B113: масса соуса | E113: 20
A114: Пюре Картофельное | C114: 120 | F114: 2.46 | G114: 3.84 | H114: 16.35 | I114: 109.80 | J114: 0.20 | K114: № 339 СБ дошк 2016
B115: Картофель | D115: 136.80 | E115: 102.60
B116: Молоко | D116: 18.96 | E116: 18.00
B117: Масло сливочное | D117: 4.20 | E117: 4.20
B118: соль иодированная | D118: 0.45 | E118: 0.45
A119: Кисломолочный напиток | C119: 150/5 | F119: 4.35 | G119: 3.75 | H119: 10.99 | I119: 94.95 | J119: 1.05 | K119: №420 Сб дошк 2016
A120: (Кефир,ряженка,катык,йогурт) | B120: кисломолочный напиток | D120: 155 | E120: 150
B121: сахар | D121: 5 | E121: 5
B122: Вода | D122: 150 | E122: 150
A123: Хлеб пшеничный | C123: 35 | D123: 35.00 | E123: 35.00 | F123: 2.66 | G123: 0.28 | H123: 17.22 | I123: 82.25 | J123: 0.00 | K123: табл 6 стр 134,Дели + 2012
A124: Итого: | C124: 390.00 | F124: =F96+F114+F119+F123 -> 20.70 | G124: =G96+G114+G119+G123 -> 14.64 | H124: 52.68 | I124: 423.84 | J124: 1.25
A125: ВСЕГО: | C125: =C31+C35+C94+C124 -> 1534.00 | D125: =D31+D35+D94+D124 -> 0.00 | E125: 0.00 | F125: 50.91 | G125: 63.87 | H125: 206.56 | I125: 1434.40 | J125: 31.73
A127: День 2- ой
A128: Наименование блюд и | C128: Масса | D128: Кол - во | E128: Кол - во | F128: Пищевые вещества | I128: Энергетическая | J128: Витамин | K128: Сборник
A129: продуктов | C129: порции | D129: (в гр ) | E129: (в гр ) | I129: ценность | K129: рецептур
D130: брутто | E130: нетто | F130: белки | G130: жиры | H130: угл-ды | I130: Ккал | J130: С
B131: ЗАВТРАК
A132: Каша полбяная молочная с маслом сливочным | C132: 150/4 | F132: 4.20 | G132: 3.80 | H132: 18.00 | I132: 123.00 | J132: 0.16 | K132: ТТК №1Д
B133: крупа полбяная | D133: 19 | E133: 19
B134: Молоко | D134: 80 | E134: 80
B135: вода | D135: 52 | E135: 52
B136: Сахар | D136: 4 | E136: 4
B137: соль иодированная | D137: 0.8 | E137: 0.8
B138: Масло сливочное | D138: 4 | E138: 4
A139: Какао с молоком | C139: 160 | F139: 3.47 | G139: 2.99 | H139: 14.26 | I139: 97.90 | J139: 0.32 | K139: №397 Дели2010
B140: Какао-порошок | D140: 1.7 | E140: 1.7
B141: Сахар | D141: 9 | E141: 9
B142: Молоко | D142: 92 | E142: 92
B143: вода | D143: 77 | E143: 77
A144: Бутерброд с сыром, маслом сливочным | C144: 25/5/5 | F144: 3.50 | G144: 5.95 | H144: 12.90 | I144: 119.60 | J144: 0.04 | K144: №3Дели2010
B145: Батон нарезной | D145: 25 | E145: 25
B146: Сыр | D146: 5.1 | E146: 5
B147: Масло сливочное | D147: 5 | E147: 5
A148: Итого: | C148: 349 | F148: =F132+F139+F144 -> 11.17 | G148: =G132+G139+G144 -> 12.74 | H148: 45.16 | I148: 340.50 | J148: 0.52
B149: 2 - ой ЗАВТРАК
A150: Фрукты свежие | C150: 95 | D150: 108.3 | E150: 95 | F150: 0.38 | G150: 0.38 | H150: 9.31 | I150: 41.80 | J150: 9.50 | K150: №386 СБ
A151: (яблоки,или апельсин, или банан,или мандарин ) | K151: дошк.2016
A152: Итого: | C152: 95 | F152: =F150 -> 0.38 | G152: =G150 -> 0.38 | H152: 9.31 | I152: 41.80 | J152: 9.50
B153: ОБЕД
A154: Салат с морской капустой с овощами | C154: 40 | F154: 0.74 | G154: 2.12 | H154: 4.33 | I154: 39.36 | J154: 4.80 | K154: № 49 СБ дошк 2016
B155: капуста морская сушеная | D155: 4.20 | E155: 4.20
B156: масса отварной морской капусты | E156: 26.00
B157: морковь | D157: 8.75 | E157: 7.00
B158: кукуруза к/с | D158: 8.35 | E158: 5.00
B159: масло растительное | D159: 2.00 | E159: 2.00
A160: Борщ со свежей капустой, картофелем на мясном бульоне,со сметаной | C160: 150/6 | F160: 1.10 | G160: 3.20 | H160: 7.20 | I160: 62.00 | J160: 4.80 | K160: №110,сбшк2004
B161: Капуста свежая | D161: 15.0 | E161: 12.0
B162: Картофель | D162: 15.96 | E162: 12.0
B163: Морковь | D163: 7.5 | E163: 6.0
B164: Лук репчатый | D164: 7.14 | E164: 6.0
B165: Свекла | D165: 30.72 | E165: 24.0
B166: Сахар | D166: 1.8 | E166: 1.8
B167: Масло растительное | D167: 3.0 | E167: 3.0
B168: соль иодированная | D168: 1.5 | E168: 1.5
B169: Бульон | D169: 120 | E169: 120.0
B170: Сметана | D170: 6.0 | E170: 6.0
A171: Плов из отварной говядины | C171: 150 | F171: 11.70 | G171: 11.70 | H171: 24.00 | I171: 248.30 | J171: 0.48 | K171: №443 сбшк2004
B172: говядина б/к (лопатка) | D172: 39.00 | E172: 39.0
B173: масса вареного мяса | E173: 24.0
B174: масло сливочное | D174: 5.0 | E174: 5.0
B175: Лук репчатый | D175: 8.9 | E175: 7.5
B176: Морковь | D176: 12.5 | E176: 10.0
B177: Крупа рисовая | D177: 32.0 | E177: 32.0
B178: вода | D178: 65.0 | E178: 65.0
B179: соль иодированная | D179: 1.3 | E179: 1.3
B180: масса гарнира | E180: 126.0
A181: Кисель | C181: 150 | H181: 15.00 | I181: 60.00 | K181: №648 сбшк2004
B182: Кисель-концентрат | D182: 17.50 | E182: 17.50
B183: Сахар | D183: 7.00 | E183: 7.00
B184: вода | D184: 150.00 | E184: 150.00
A185: Хлеб пшенично - ржаной | C185: 40 | D185: 40 | E185: 40 | F185: 2.64 | G185: 0.48 | H185: 15.84 | I185: 79.2 | K185: табл 6 стр 144,Дели + 2012
A186: Итого: | C186: 516 | F186: =F154+F160+F171+F181+F185 -> 16.18 | G186: =G154+G160+G171+G181+G185 -> 17.50 | H186: 66.37 | I186: 488.86 | J186: 10.08
B187: УПЛОТНЕННЫЙ ПОЛДНИК
A188: Запеканка творожная с повидлом | C188: 110/20 | F188: 19.37 | G188: 13.26 | H188: 31.87 | I188: 321.70 | J188: 0.36 | K188: № 251 сб дошк 2016
B189: Творог | D189: 103.2 | E189: 101.2
B190: крупа манная | D190: 6.6 | E190: 6.6
B191: Яйцо | D191: 5.28 | E191: 4.4
B192: Сахар | D192: 8.8 | E192: 8.8
B193: Сметана | D193: 4.4 | E193: 4.4
B194: Масло сливочное | D194: 4.4 | E194: 4.4
B195: Сухари панировочные | D195: 4.4 | E195: 4.4
B196: соль иодированная | D196: 0.55 | E196: 0.55
B197: повидло | D197: 20 | E197: 20
A198: Кисломолочный напиток | C198: 150 | F198: 4.35 | G198: 3.75 | H198: 6.30 | I198: 76.00 | J198: 0.45 | K198: №420 Сб дошк 2016
A199: (кефир,ряженка,катык,йогурт) | B199: кисломолочный напиток | D199: 155 | E199: 150
A200: Кондитерское изделие | B200: мармелад | C200: 13 | D200: 13.00 | E200: 13.00 | F200: 0.00 | G200: 0.00 | H200: 11.20 | I200: 42.25 | K200: №437 Сб дошк 2016
A201: Хлеб пшеничный | C201: 20 | D201: 20 | E201: 20 | F201: 1.52 | G201: 0.16 | H201: 9.84 | I201: 47.00 | J201: 0.00 | K201: табл 6 стр 134,Дели + 2012
A202: Итого: | C202: 313 | F202: =F188+F198+F200+F201 -> 25.24 | G202: =G188+G198+G200+G201 -> 17.17 | H202: 59.21 | I202: 486.95 | J202: 0.81
A203: ВСЕГО: | C203: =C148+C152+C186+C202 -> 1273.00 | D203: =D148+D152+D186+D202 -> 0.00 | E203: 0.00 | F203: 52.97 | G203: 47.79 | H203: 180.05 | I203: 1358.11 | J203: 20.91
A205: День 3 - ий
A206: Наименование блюд и | C206: Масса | D206: Кол - во | E206: Кол - во | F206: Пищевые вещества | I206: Энергетическая | J206: Витамин | K206: Сборник
... 985 more rows
